bitfinex/quotes_SOLUSD_20260226
["timestamp","ask_amount","ask_price","bid_price","bid_amount"]
[1772074813654,12.01475589,88.306,88.281,0.67419866]
[1772074813858,11.32352359,88.312,88.281,0.67419866]
[1772074815473,0.69049707,88.318,88.281,0.67419866]
[1772074815855,3.54837425,88.31,88.281,0.67419866]
[1772074816058,0.69049707,88.309,88.281,0.67419866]
[1772074816861,39.62907187,88.319,88.281,0.67419866]
[1772074817086,39.62907187,88.319,88.282,0.67419866]
[1772074817087,11.32259196,88.319,88.282,0.67419866]
[1772074817453,11.32193475,88.325,88.284,0.67419866]
[1772074817646,0.69049707,88.334,88.3,3.54837425]
[1772074817969,11.32002852,88.339,88.301,0.67419866]
[1772074818371,11.32002852,88.339,88.311,0.67419866]
[1772074819549,0.69049707,88.348,88.311,0.67419866]
[1772074822570,0.69049707,88.346,88.311,0.67419866]
[1772074824377,0.69049707,88.344,88.311,0.67419866]
[1772074827877,0.71038455,88.339,88.301,0.68148306]
[1772074828765,11.31899483,88.348,88.311,0.68148306]
[1772074831761,0.71038455,88.339,88.286,62.2]
[1772074832060,0.71038455,88.339,88.271,0.68148306]
[1772074832061,0.71038455,88.299,88.271,0.68148306]
[1772074832561,3.69383402,88.339,88.271,0.68148306]
[1772074832562,0.71038455,88.306,88.271,0.68148306]
[1772074834173,11.32438706,88.305,88.271,0.68148306]
[1772074837066,11.32359349,88.312,88.281,0.67231251]
[1772074837267,11.32262902,88.319,88.291,0.67231251]
[1772074837684,0.66651369,88.318,88.284,0.67231251]
[1772074837879,0.66651369,88.309,88.272,0.67231251]
[1772074839170,0.66651369,88.307,88.272,0.67231251]
[1772074840372,11.32400235,88.308,88.274,0.67231251]
[1772074840771,11.32400235,88.308,88.28,3.55150624]
[1772074840967,11.32400235,88.308,88.281,0.67231251]
[1772074841774,39.63041804,88.316,88.281,0.67231251]
[1772074842071,39.63041804,88.316,88.27,0.2]
[1772074842072,0.66651369,88.299,88.27,0.2]
[1772074842677,0.66651369,88.299,88.271,0.67231251]
[1772074844278,0.66651369,88.299,88.27,0.2]
[1772074844279,0.66651369,88.289,88.27,0.2]
[1772074844501,0.66651369,88.296,88.271,0.67231251]
[1772074844990,0.66651369,88.308,88.272,0.67231251]
[1772074846496,11.32413058,88.307,88.272,0.67231251]
[1772074848496,11.99064427,88.307,88.272,0.67231251]
[1772074848796,0.66651369,88.306,88.272,0.67231251]
[1772074849592,11.32438706,88.305,88.272,0.67231251]
[1772074849799,0.66651369,88.304,88.272,0.67231251]
[1772074851007,0.66651369,88.299,88.272,0.67231251]
[1772074851677,3.55150624,88.29,88.272,0.67231251]
[1772074852699,4.21801993,88.29,88.27,0.2]
[1772074853001,11.99295299,88.289,88.27,0.2]
[1772074853393,11.3264393,88.289,88.271,0.67231251]
[1772074853592,0.66651369,88.309,88.272,0.67231251]
[1772074853796,3.55150624,88.3,88.272,0.67231251]
[1772074854197,0.66651369,88.299,88.272,0.67231251]
[1772074854401,3.55150624,88.28,88.27,0.2]
[1772074855290,11.32772233,88.279,88.27,0.2]
[1772074856292,0.66651369,88.283,88.27,0.2]
[1772074856609,11.32655547,88.289,88.27,0.2]
[1772074858598,12.03335134,88.289,88.27,0.2]
[1772074859110,3.55150624,88.29,88.271,0.69066637]
[1772074859311,14.87785693,88.29,88.271,0.69066637]
[1772074861188,0.70679587,88.338,88.28,3.55150624]
[1772074861388,4.25830211,88.32,88.281,0.69066637]
[1772074861804,0.70679587,88.319,88.281,0.69066637]
[1772074864492,0.70679587,88.317,88.281,0.69066637]
[1772074864699,0.70679587,88.309,88.281,0.69066637]
[1772074864894,4.25830211,88.3,88.271,0.69066637]
[1772074865300,4.25830211,88.31,88.271,0.69066637]
[1772074865499,11.32272017,88.318,88.281,0.69066637]
[1772074865907,0.70679587,88.317,88.281,0.69066637]
[1772074868923,11.31887535,88.348,88.311,0.69066637]
[1772074869817,4.25830211,88.36,88.321,0.69066637]
[1772074870115,0.70679587,88.359,88.321,0.69066637]
[1772074870504,0.70679587,88.349,88.321,0.69066637]
[1772074871616,0.70679587,88.347,88.321,0.69066637]
[1772074873097,11.31913159,88.346,88.321,0.69066637]
[1772074873298,12.02592746,88.346,88.321,0.69066637]
[1772074875215,0.70679587,88.353,88.321,0.69066637]
[1772074875597,0.70679587,88.353,88.323,0.69066637]
[1772074875798,11.31656972,88.366,88.331,0.69066637]
[1772074876422,12.02336559,88.366,88.331,0.69066637]
[1772074877013,0.70679587,88.365,88.331,0.69066637]
[1772074878810,3.55150624,88.36,88.323,0.69066637]
[1772074879018,0.70679587,88.358,88.317,0.69066637]
[1772074879324,45.25856304,88.382,88.302,3.69383402]
[1772074879325,0.70679587,88.395,88.319,0.69066637]
[1772074879506,11.31234516,88.399,88.371,0.69066637]
[1772074879696,11.31234516,88.399,88.37,3.55150624]
[1772074879697,0.70679587,88.398,88.331,3.69383402]
[1772074879904,11.31234516,88.399,88.323,3.69383402]
[1772074879905,3.55150624,88.39,88.35,3.55150624]
[1772074880217,0.70679587,88.379,88.331,0.28432314]
[1772074881006,0.70679587,88.377,88.34,3.55150624]
[1772074882402,0.70679587,88.369,88.33,3.55150624]
[1772074882720,0.70679587,88.369,88.332,0.69066637]
[1772074883323,0.70679587,88.367,88.332,0.69066637]
[1772074883525,0.70679587,88.349,88.31,0.69066637]
[1772074883712,0.70679587,88.339,88.31,0.69066637]
[1772074883917,0.70679587,88.339,88.311,0.69066637]
[1772074884112,0.70679587,88.339,88.31,3.55150624]
[1772074884113,0.70679587,88.359,88.321,0.69066637]
[1772074886124,0.6872952,88.357,88.321,0.69066637]
[1772074887923,0.6872952,88.349,88.321,0.69066637]
[1772074888122,0.6872952,88.347,88.321,0.69066637]
[1772074889107,0.6872952,88.386,88.34,3.55150624]
[1772074889430,0.6872952,88.385,88.351,0.70243226]
[1772074890525,0.6872952,88.385,88.344,0.70243226]
[1772074890714,0.6872952,88.379,88.344,0.70243226]
[1772074891428,0.6872952,88.377,88.344,0.70243226]
[1772074892221,0.6872952,88.377,88.35,3.55150624]
[1772074892421,0.6872952,88.377,88.344,0.70243226]
[1772074893132,11.31503315,88.378,88.311,0.68724386]
[1772074893133,0.67231687,88.349,88.311,0.68724386]
[1772074893310,0.67231687,88.349,88.321,0.68724386]
[1772074893636,0.67231687,88.349,88.323,0.68724386]
[1772074896941,0.18553911,88.349,88.323,0.68724386]
[1772074897342,0.18553911,88.349,88.324,12.00919485]
[1772074897522,0.18553911,88.349,88.325,0.68724386]
[1772074898832,11.99026386,88.356,88.325,0.68724386]
[1772074899034,11.99026386,88.356,88.327,0.68724386]
[1772074899233,11.31794699,88.356,88.327,0.68724386]
[1772074899433,11.99026386,88.356,88.327,0.68724386]
[1772074899640,0.67231687,88.355,88.327,0.68724386]
[1772074900224,11.31794699,88.356,88.308,28.30989906]
[1772074900225,0.67231687,88.349,88.322,0.68724386]
[1772074901228,11.99108412,88.349,88.322,0.68724386]
[1772074901434,0.67231687,88.348,88.322,0.68724386]
[1772074902338,0.67231687,88.348,88.302,0.68724386]
[1772074903319,0.67231687,88.329,88.289,12.0135876]
[1772074903520,0.67231687,88.319,88.281,12.01470956]
[1772074903719,0.67231687,88.329,88.291,0.68724386]
[1772074904135,0.67231687,88.329,88.281,11.3274657]
[1772074904136,0.67231687,88.319,88.283,0.68724386]
[1772074904514,0.67231687,88.319,88.27,0.2]
[1772074904719,0.67231687,88.299,88.271,0.68724386]
[1772074905123,0.67231687,88.299,88.27,0.2]
[1772074905522,0.67231687,88.297,88.27,0.2]
[1772074905721,0.67231687,88.297,88.271,0.68724386]
[1772074906135,0.67231687,88.297,88.27,0.2]
[1772074906842,0.67231687,88.297,88.271,0.68724386]
[1772074907022,11.32528483,88.298,88.272,0.68724386]
[1772074907223,0.67231687,88.309,88.272,0.68724386]
[1772074907529,11.99526759,88.317,88.281,0.68724386]
[1772074907843,11.32161329,88.327,88.291,0.68724386]
[1772074909547,0.67231687,88.319,88.284,0.68724386]
[1772074909731,0.67231687,88.319,88.286,0.68724386]
[1772074910125,11.32272017,88.318,88.286,0.68724386]
[1772074911054,11.99503704,88.318,88.286,0.68724386]
[1772074913848,0.67231687,88.317,88.286,0.68724386]
[1772074914047,0.67231687,88.317,88.279,0.68724386]
[1772074914252,11.32272017,88.318,88.27,0.2]
[1772074914253,0.67231687,88.299,88.27,0.2]
[1772074914459,0.67231687,88.316,88.271,0.68724386]
[1772074915040,0.67231687,88.309,88.271,0.68724386]
[1772074916547,11.32400235,88.308,88.273,0.68796251]
[1772074917236,0.69472952,88.328,88.281,0.68796251]
[1772074918548,0.69472952,88.326,88.283,0.68796251]
[1772074919454,11.32156645,88.327,88.283,0.68796251]
[1772074919455,3.54768453,88.31,88.283,0.68796251]
[1772074919656,0.69472952,88.319,88.283,0.68796251]
[1772074920931,0.69472952,88.317,88.283,0.68796251]
[1772074921256,11.32272017,88.318,88.284,0.68796251]
[1772074922550,3.54768453,88.3,88.272,0.68796251]
[1772074922756,0.69472952,88.299,88.272,0.68796251]
[1772074923138,0.69472952,88.299,88.271,11.32874896]
[1772074923139,11.32272017,88.318,88.281,0.68796251]
[1772074923451,12.01686797,88.323,88.281,0.68796251]
[1772074923752,0.69472952,88.319,88.281,0.68796251]
[1772074924148,0.69472952,88.309,88.274,0.68796251]
[1772074925838,12.01873187,88.308,88.275,0.68796251]
[1772074926251,3.54768453,88.31,88.275,0.68796251]
[1772074926456,45.2763155,88.347,88.274,11.32825548]
[1772074926457,0.69472952,88.312,88.281,0.68796251]
[1772074927634,0.69472952,88.299,88.271,0.68796251]
[1772074927848,0.69472952,88.306,88.271,0.68796251]
[1772074928256,0.69472952,88.309,88.272,0.68796251]
[1772074931356,11.32400235,88.308,88.272,0.68796251]
[1772074931558,0.69472952,88.307,88.272,0.68796251]
[1772074932544,0.69472952,88.328,88.301,0.68796251]
[1772074932750,12.01629597,88.327,88.301,0.68796251]
[1772074933463,12.01629597,88.327,88.255,45.32273749]
[1772074933464,0.69472952,88.338,88.303,0.68796251]
[1772074933637,11.32028481,88.337,88.303,0.68796251]
[1772074933842,0.69472952,88.336,88.303,0.68796251]
[1772074934553,3.54768453,88.32,88.289,0.68796251]
[1772074934761,0.69472952,88.319,88.289,0.68796251]
[1772074936047,0.69472952,88.317,88.274,0.68796251]
[1772074936258,0.69472952,88.289,88.261,0.68796251]
[1772074936770,84.92040127,88.318,88.253,0.68796251]
[1772074936771,0.69472952,88.279,88.253,0.68796251]
[1772074937269,0.69472952,88.288,88.253,12.01899778]
[1772074937569,0.69472952,88.288,88.254,0.68796251]
[1772074938046,3.54768453,88.29,88.254,0.68796251]
[1772074938253,11.32516168,88.299,88.261,0.68796251]
[1772074938466,11.32454546,88.304,88.27,3.54768453]
[1772074938771,11.32395395,88.309,88.271,0.68796251]
[1772074939163,11.32318675,88.315,88.281,0.68796251]
[1772074939354,0.69472952,88.323,88.291,0.68796251]
[1772074939662,0.69472952,88.299,88.26,3.54768453]
[1772074939850,0.69472952,88.299,88.261,0.28432314]
[1772074940045,0.69472952,88.308,88.27,3.54768453]
[1772074940255,11.32413058,88.307,88.271,11.32874896]
[1772074940863,11.3235193,88.312,88.28,3.54768453]
[1772074941061,11.323233,88.314,88.28,3.54768453]
[1772074941259,11.323233,88.314,88.28,9.50931318]
[1772074941764,11.323233,88.314,88.281,0.68796251]
[1772074941978,0.69472952,88.309,88.27,9.50931318]
[1772074942159,39.63131552,88.314,88.268,0.68796251]
[1772074942160,0.69472952,88.299,88.268,0.68796251]
[1772074942670,0.69472952,88.297,88.268,0.68796251]
[1772074943165,0.69472952,88.297,88.269,11.32900565]
[1772074944472,0.69472952,88.297,88.27,0.68796251]
[1772074944665,0.69472952,88.305,88.272,0.68796251]
[1772074945388,0.69472952,88.299,88.26,9.50931318]
[1772074945555,0.69472952,88.289,88.253,0.68796251]
[1772074946057,0.68018296,88.279,88.25,0.87918253]
[1772074946288,0.68018296,88.279,88.251,0.67918253]
[1772074949263,11.32785065,88.278,88.251,0.67918253]
[1772074949465,0.68018296,88.277,88.251,0.67918253]
[1772074950378,186.64793142,88.836,88.25,9.70931318]
[1772074950379,12.0058518,88.296,88.261,0.67918253]
[1772074950564,0.68018296,88.295,88.261,0.67918253]
[1772074950753,11.32566884,88.296,88.261,0.67918253]
[1772074950754,0.68018296,88.289,88.261,0.67918253]
[1772074950954,0.68018296,88.289,88.253,0.67918253]
[1772074951169,0.68018296,88.279,88.25,0.2]
[1772074951361,0.68018296,88.277,88.25,0.2]
[1772074953381,0.68343718,88.289,88.251,0.66528947]
[1772074953679,0.68343718,88.288,88.252,0.66528947]
[1772074955460,0.68343718,88.286,88.252,0.66528947]
[1772074956381,11.32669588,88.287,88.254,0.66528947]
[1772074956583,11.32669588,88.287,88.261,0.66528947]
[1772074956783,11.32575287,88.295,88.261,0.66528947]
[1772074956987,12.00919005,88.295,88.261,0.66528947]
[1772074957283,0.68343718,88.319,88.281,0.66528947]
[1772074957966,12.00615735,88.318,88.283,0.66528947]
[1772074958169,9.50931318,88.33,88.291,0.66528947]
[1772074958170,11.32212208,88.323,88.291,0.66528947]
[1772074958879,0.68343718,88.319,88.269,11.61332879]
[1772074959081,0.68343718,88.319,88.216,45.34308894]
[1772074959082,0.68343718,88.289,88.252,0.28432314]
[1772074959271,0.68343718,88.299,88.26,9.50931318]
[1772074959770,0.68343718,88.289,88.252,0.14216157]
[1772074959967,0.68343718,88.287,88.25,9.70931318]
[1772074960876,0.68343718,88.287,88.251,0.60964078]
[1772074961280,0.68343718,88.259,88.21,0.2]
[1772074961580,130.25847812,88.286,88.212,0.66528947]
[1772074961581,0.68343718,88.249,88.212,0.66528947]
[1772074962483,0.68343718,88.249,88.214,11.33599028]
[1772074963288,0.68343718,88.247,88.214,11.33599028]
[1772074963874,11.33110735,88.253,88.221,0.66528947]
[1772074964076,0.68343718,88.252,88.221,12.0004591]
[1772074964385,0.68343718,88.252,88.222,0.66528947]
[1772074965088,0.68343718,88.252,88.223,11.33491266]
[1772074967093,0.68343718,88.252,88.223,12.00020213]
[1772074967987,9.52328469,88.26,88.224,0.66528947]
[1772074968288,0.68343718,88.269,88.24,9.52328469]
[1772074968988,0.68343718,88.269,88.24,10.18857416]
[1772074969992,11.329134,88.268,88.24,10.18857416]
[1772074970166,0.68343718,88.269,88.242,0.66528947]
[1772074970486,113.62328469,88.29,88.241,11.33260049]
[1772074970487,0.68343718,88.29,88.26,9.52328469]
[1772074970686,0.68343718,88.289,88.25,9.52328469]
[1772074971186,0.68343718,88.289,88.247,0.66528947]
[1772074971370,0.68343718,88.289,88.241,11.99788996]
[1772074972387,0.68343718,88.287,88.25,9.52328469]
[1772074972686,0.68343718,88.287,88.26,9.52328469]
[1772074972987,11.32599656,88.293,88.27,9.52328469]
[1772074973167,12.00943374,88.293,88.27,9.52328469]
[1772074973367,0.68343718,88.292,88.27,9.52328469]
[1772074973572,0.68343718,88.292,88.268,0.66528947]
[1772074974379,0.68343718,88.299,88.268,0.66528947]
[1772074977990,0.69367733,88.297,88.268,0.66528947]
[1772074979090,0.69367733,88.297,88.223,62.2]
[1772074979091,0.69367733,88.305,88.28,9.52328469]
[1772074979395,0.69367733,88.305,88.28,10.21698462]
[1772074979582,11.32428982,88.306,88.281,0.69369993]
[1772074980174,12.01691033,88.314,88.281,0.69369993]
[1772074980493,0.69367733,88.313,88.273,0.69369993]
[1772074980821,0.69367733,88.309,88.271,0.69369993]
[1772074981402,39.63131552,88.314,88.229,5.36086188]
[1772074981403,0.69367733,88.279,88.229,5.36086188]
[1772074981698,0.69367733,88.249,88.221,0.69369993]
[1772074982072,9.52328469,88.25,88.221,0.69369993]
[1772074982273,11.3306744,88.256,88.221,0.69369993]
[1772074982490,11.3306744,88.256,88.222,0.69369993]
[1772074982793,0.69367733,88.255,88.222,0.69369993]
[1772074983687,45.30929796,88.283,88.222,0.69369993]
[1772074983688,0.69367733,88.271,88.24,9.52328469]
[1772074983893,0.69367733,88.269,88.231,0.69369993]
[1772074985073,11.329134,88.268,88.231,12.02756891]
[1772074985279,0.69367733,88.267,88.232,0.69369993]
[1772074986598,11.3293907,88.266,88.232,0.69369993]
[1772074988398,11.32964742,88.264,88.232,0.69369993]
[1772074988599,0.69367733,88.263,88.232,0.69369993]
[1772074989006,0.69367733,88.249,88.22,0.2]
[1772074991290,39.65376597,88.264,88.222,0.69369993]
[1772074991291,11.33041604,88.259,88.222,0.69369993]
[1772074991498,0.69367733,88.258,88.222,0.69369993]
[1772074992502,11.33054601,88.257,88.222,0.69369993]
[1772074992700,12.02422334,88.257,88.222,0.69369993]
[1772074993001,0.69367733,88.249,88.22,0.2]
[1772074994902,0.69367733,88.247,88.22,0.2]
[1772074996502,0.69367733,88.239,88.21,0.2]
[1772074996685,39.66095548,88.248,88.212,0.69369993]
[1772074996686,11.33170156,88.248,88.212,0.69369993]
[1772074996884,0.69367733,88.247,88.212,0.69369993]
[1772074997085,0.69367733,88.245,88.212,0.69369993]
[1772074997903,0.69367733,88.245,88.211,11.33645463]
[1772074997904,0.69367733,88.252,88.221,0.69369993]
[1772074998089,21.54583932,88.27,88.231,0.69369993]
[1772074998286,0.69367733,88.269,88.231,0.69369993]
[1772074998784,11.32833269,88.275,88.241,0.69369993]
[1772074999184,0.69367733,88.278,88.242,11.33247206]
[1772074999384,0.69367733,88.278,88.243,0.69369993]
[1772075000505,0.69367733,88.289,88.251,0.69369993]
[1772075000701,11.32576415,88.295,88.261,0.69369993]
[1772075001002,11.32576415,88.295,88.244,11.33221522]
[1772075001003,0.69367733,88.299,88.271,0.69369993]
[1772075001186,12.0188339,88.299,88.271,0.69369993]
[1772075001804,28.30662953,88.319,88.244,39.66275327]
[1772075001805,0.69367733,88.319,88.291,0.69369993]
[1772075001989,11.32299751,88.316,88.291,0.69369993]
[1772075003393,0.69367733,88.315,88.282,0.69369993]
[1772075003605,0.69367733,88.309,88.271,0.69369993]
[1772075003807,0.69367733,88.309,88.272,0.69369993]
[1772075004586,0.69367733,88.307,88.272,0.69369993]
[1772075005710,0.69367733,88.307,88.271,11.32874896]
[1772075005711,0.69367733,88.307,88.274,0.69369993]
[1772075007295,0.72318462,88.305,88.274,0.69369993]
[1772075008806,0.72318462,88.355,88.301,0.70759855]
[1772075009117,0.72318462,88.339,88.301,0.70759855]
[1772075009290,0.72318462,88.339,88.311,0.70759855]
[1772075009492,0.72318462,88.337,88.284,0.70759855]
[1772075009799,0.72318462,88.329,88.291,0.70759855]
[1772075010911,0.72318462,88.337,88.301,0.70759855]
[1772075012313,0.72318462,88.335,88.293,0.70759855]
[1772075013707,0.69788411,88.333,88.293,0.70759855]
[1772075014108,0.69788411,88.333,88.295,0.68389493]
[1772075014413,11.32066927,88.334,88.292,0.68389493]
[1772075014414,0.69788411,88.329,88.292,0.68389493]
[1772075017519,0.69788411,88.327,88.292,0.68389493]
[1772075018112,0.69788411,88.327,88.281,0.68389493]
[1772075018419,0.69788411,88.319,88.281,0.68389493]
[1772075018600,0.69788411,88.319,88.283,0.68389493]
[1772075018801,0.69788411,88.319,88.291,0.68389493]
[1772075019713,0.69788411,88.319,88.293,0.68389493]
[1772075021522,11.32272017,88.318,88.293,0.68389493]
[1772075022024,0.69788411,88.319,88.293,0.68389493]
[1772075023132,0.69788411,88.327,88.293,0.68389493]
[1772075023626,0.69788411,88.327,88.295,0.68389493]
[1772075024927,11.32169463,88.326,88.295,0.68389493]
[1772075025111,0.69788411,88.346,88.311,0.68389493]
[1772075025620,9.50719909,88.35,88.311,0.68389493]
[1772075025621,0.69788411,88.344,88.311,0.68389493]
[1772075028017,11.31951597,88.343,88.311,0.68389493]
[1772075028216,0.69788411,88.342,88.311,0.68389493]
[1772075029408,11.31951597,88.343,88.312,0.68389493]
[1772075030932,0.69788411,88.343,88.312,0.68389493]
[1772075032834,0.69788411,88.343,88.296,28.3138534]
[1772075032835,0.69788411,88.424,88.331,0.28432314]
[1772075033145,164.9,88.563,88.33,3.54800122]
[1772075033146,1e-08,88.44,88.4,7.09600244]
[1772075033447,0.76186525,88.457,88.43,3.54800122]
[1772075033646,0.76186525,88.469,88.44,3.54800122]
[1772075033841,0.76186525,88.478,88.45,3.54800122]
[1772075034039,0.1,88.49,88.46,3.54800122]
[1772075034040,0.76186525,88.489,88.46,3.54800122]
[1772075034347,0.76186525,88.489,88.444,3.69383402]
[1772075034348,0.76186525,88.489,88.47,3.54800122]
[1772075034842,0.76186525,88.479,88.41,3.54800122]
[1772075035045,0.76186525,88.447,88.401,0.14216157]
[1772075035246,0.76186525,88.455,88.42,9.47910991]
[1772075035551,0.76186525,88.455,88.41,9.47910991]
[1772075035850,0.76186525,88.455,88.42,9.47910991]
[1772075037646,0.76186525,88.453,88.413,11.31050884]
[1772075038025,11.30531123,88.454,88.368,3.69383402]
[1772075038026,0.76186525,88.429,88.368,3.69383402]
[1772075038248,0.76186525,88.429,88.39,9.47910991]
[1772075039042,0.76186525,88.429,88.4,9.47910991]
[1772075040347,0.76186525,88.444,88.41,9.47910991]
[1772075040870,0.76186525,88.454,88.42,9.47910991]
[1772075041048,0.76186525,88.429,88.39,9.47910991]
[1772075041232,0.76186525,88.419,88.38,20.79387054]
[1772075042050,0.76186525,88.429,88.39,9.47910991]
[1772075042553,0.76186525,88.409,88.321,45.28901505]
[1772075042850,0.76186525,88.409,88.38,9.47910991]
[1772075043053,0.76186525,88.409,88.359,0.28432314]
[1772075043229,0.76186525,88.409,88.321,45.28901505]
[1772075043230,0.76186525,88.399,88.35,9.47910991]
[1772075043430,0.76186525,88.399,88.36,9.47910991]
[1772075044548,0.76186525,88.407,88.37,9.47910991]
[1772075044737,0.76186525,88.407,88.327,5.36086188]
[1772075044738,0.76186525,88.399,88.35,9.47910991]
[1772075045140,0.76186525,88.389,88.35,9.47910991]
[1772075047139,0.76186525,88.387,88.351,11.31849101]
[1772075048149,11.31375299,88.388,88.34,9.47910991]
[1772075048150,0.76186525,88.379,88.34,9.47910991]
[1772075049146,0.76186525,88.379,88.351,11.31849101]
[1772075049947,12.07421041,88.399,88.36,9.47910991]
[1772075050151,0.76186525,88.398,88.36,9.47910991]
[1772075051632,0.76186525,88.389,88.34,9.47910991]
[1772075051833,0.76186525,88.369,88.32,9.47910991]
[1772075052039,0.76186525,88.359,88.32,9.47910991]
[1772075053340,0.76186525,88.369,88.331,0.02025899]
[1772075054040,0.76186525,88.339,88.278,5.36086188]
[1772075054356,0.76186525,88.309,88.271,0.02102421]
[1772075054543,3.69383402,88.357,88.281,0.02102421]
[1772075054544,0.76186525,88.319,88.281,0.02102421]
[1772075057638,0.76186525,88.319,88.281,11.3274657]
[1772075058145,11.32272017,88.318,88.281,11.3274657]
[1772075058345,0.76186525,88.317,88.281,11.3274657]
[1772075059967,0.76186525,88.327,88.291,0.02473312]
[1772075060758,0.76186525,88.327,88.29,9.47910991]
[1772075064060,104.1,88.355,88.301,0.0275306]
[1772075064061,0.76186525,88.339,88.301,0.0275306]
[1772075066675,0.76186525,88.337,88.301,11.32490005]
[1772075066869,0.76186525,88.319,88.28,9.5093107]
[1772075067960,0.76186525,88.319,88.281,39.64612996]
[1772075068351,0.76186525,88.336,88.3,9.47910991]
[1772075068763,0.76186525,88.335,88.301,11.32490005]
[1772075069362,0.76186525,88.329,88.29,11.32622043]
[1772075069761,0.76186525,88.329,88.29,20.80533034]
[1772075070469,0.76186525,88.329,88.29,11.32622043]
[1772075072253,0.76186525,88.327,88.282,0.0321343]
[1772075077575,0.76186525,88.325,88.282,0.0321343]
[1772075080983,0.76186525,88.325,88.29,3.54983985]
[1772075081182,0.76186525,88.325,88.291,0.03918941]
[1772075081686,0.76186525,88.325,88.271,62.2]
[1772075081687,0.76186525,88.309,88.261,0.03972641]
[1772075081863,0.76186525,88.309,88.271,0.03972641]
[1772075082582,0.76186525,88.328,88.291,0.04026556]
[1772075082983,0.76186525,88.326,88.291,0.04026556]
[1772075083679,0.76186525,88.326,88.3,3.5906356]
[1772075083883,0.76186525,88.326,88.3,3.54983985]
[1772075084180,0.76186525,88.326,88.293,0.04079575]
[1772075085685,0.76186525,88.326,88.3,9.50648017]
[1772075085979,0.76186525,88.319,88.262,0.32615811]
[1772075086175,0.76186525,88.319,88.282,0.04183497]
[1772075086373,0.76186525,88.319,88.29,9.50648017]
[1772075086572,0.76186525,88.319,88.271,0.04234263]
[1772075087666,0.76186525,88.319,88.271,0.04284725]
[1772075087867,0.76186525,88.319,88.281,11.37031295]
[1772075089686,0.76186525,88.317,88.281,11.37031295]
[1772075092683,0.76186525,88.317,88.282,0.04528552]
[1772075093269,0.76186525,88.324,88.291,0.04575965]
[1772075094284,0.76186525,88.324,88.281,39.64612996]
[1772075094478,0.76186525,88.319,88.281,11.3274657]
[1772075094677,0.76186525,88.309,88.271,11.32874896]
[1772075095483,0.76186525,88.309,88.271,39.65062137]
[1772075097089,0.76186525,88.309,88.271,39.69823045]
[1772075098278,0.76186525,88.309,88.272,0.0484969]
[1772075099478,0.76186525,88.309,88.28,9.50648017]
[1772075101194,0.76186525,88.309,88.265,62.2]
[1772075101195,9.50648017,88.3,88.25,9.50648017]
[1772075101391,0.76186525,88.289,88.246,11.33195838]
[1772075101691,0.76186525,88.279,88.241,11.33260049]
[1772075102089,0.76186525,88.269,88.231,11.33388491]
[1772075102289,0.76186525,88.269,88.23,9.70648017]
[1772075102290,0.76186525,88.259,88.23,0.2]
[1772075102590,0.76186525,88.259,88.231,11.33388491]
[1772075102797,0.76186525,88.259,88.23,0.2]
[1772075102994,0.76186525,88.259,88.231,11.33388491]
[1772075103294,0.76186525,88.259,88.23,0.2]
[1772075103502,0.76186525,88.259,88.231,11.33388491]
[1772075105290,0.76186525,88.259,88.232,0.0514764]
[1772075105494,0.76186525,88.274,88.24,3.60555521]
[1772075105689,0.76186525,88.28,88.25,3.55407881]
[1772075106480,0.76186525,88.28,88.23,0.2]
[1772075106481,0.76186525,88.259,88.23,0.2]
[1772075106775,0.76186525,88.249,88.23,0.2]
[1772075108093,0.76186525,88.247,88.23,0.2]
[1772075108703,0.76186525,88.239,88.215,11.33589473]
[1772075111905,0.28432314,88.278,88.215,11.33589473]
[1772075111906,0.76186525,88.259,88.221,0.05386639]
[1772075114594,11.33041763,88.258,88.22,3.55407881]
[1772075114796,0.76186525,88.249,88.21,0.2]
[1772075115006,0.76186525,88.249,88.211,11.33645463]
[1772075116719,0.76186525,88.239,88.21,0.2]
[1772075116891,0.76186525,88.239,88.211,11.33645463]
[1772075118416,0.76186525,88.239,88.21,0.2]
[1772075118603,0.76186525,88.237,88.211,11.33645463]
[1772075120211,0.76186525,88.237,88.212,0.05712058]
[1772075121302,0.76186525,88.237,88.211,11.33645463]
[1772075122014,0.76186525,88.258,88.212,0.05746263]
[1772075122215,0.76186525,88.249,88.212,0.05746263]
[1772075122518,0.76186525,88.249,88.211,39.67759122]
[1772075123410,3.55407881,88.25,88.211,39.67759122]
[1772075123411,0.76186525,88.247,88.211,39.67759122]
[1772075125018,0.76186525,88.247,88.212,0.05846011]
[1772075125520,0.76186525,88.259,88.221,0.05878555]
[1772075126917,0.76186525,88.266,88.231,0.05941739]
[1772075127504,0.76186525,88.266,88.231,11.3933023]
[1772075128017,11.32948323,88.266,88.231,11.3933023]
[1772075128218,0.76186525,88.265,88.231,11.3933023]
[1772075129214,0.76186525,88.265,88.231,11.33388491]
[1772075131024,0.76186525,88.265,88.231,11.39453742]
[1772075132218,0.76186525,88.263,88.231,11.33388491]
[1772075133728,0.76186525,88.263,88.225,0.06185464]
[1772075134022,0.76186525,88.239,88.21,0.2]
[1772075134208,0.76186525,88.229,88.21,0.2]
[1772075134404,0.76186525,88.229,88.2,0.2]